fUST/lending_fUST_20250802
["ID","MTS","AMOUNT","RATE_DAILY","PERIOD"]
[376645679,1754069461776,-1038.26,0.00023734,2]
[376645680,1754069461787,-460.0,0.00023734,2]
[376645681,1754069461800,-748.01,0.00023734,2]
[376645682,1754069461814,-460.0,0.00023734,2]
[376645683,1754069461825,-442.03549409,0.00023734,2]
[376645684,1754069461838,-565.8,0.00023734,2]
[376645685,1754069461850,-1629.59,0.00023734,2]
[376645686,1754069461861,-829.9,0.00023734,2]
[376645687,1754069461873,-1243.19,0.00023734,2]
[376645688,1754069461884,-460.0,0.00023734,2]
[376645689,1754069461895,-575.44,0.00023734,2]
[376645690,1754069461906,-524.08,0.00023734,2]
[376645691,1754069461918,-620.6,0.00023734,2]
[376645692,1754069461930,-460.0,0.00023734,2]
[376645693,1754069461941,-460.0,0.00023734,2]
[376645694,1754069461953,-1277.87,0.00023734,2]
[376645695,1754069461964,-600.2,0.00023734,2]
[376645696,1754069461975,-460.0,0.00023734,2]
[376645697,1754069462004,-662.37,0.00023734,2]
[376645698,1754069462015,-1085.61,0.00023734,2]
[376645699,1754069462026,-3361.66,0.00023734,2]
[376645700,1754069462037,-460.0,0.00023734,2]
[376645701,1754069462054,-1453.73,0.00023734,2]
[376645702,1754069462065,-627.63,0.00023734,2]
[376645703,1754069462076,-1282.4,0.00023734,2]
[376645704,1754069462087,-479.84,0.00023734,2]
[376645705,1754069462099,-2414.29,0.00023734,2]
[376645706,1754069462110,-684.14,0.00023734,2]
[376645707,1754069462121,-460.0,0.00023734,2]
[376645708,1754069462132,-460.0,0.00023734,2]
[376645709,1754069462144,-460.0,0.00023734,2]
[376645710,1754069462155,-1524.19,0.00023734,2]
[376645711,1754069462166,-377.98494692,0.00023734,2]
[376645712,1754069462178,-460.0,0.00023734,2]
[376645713,1754069462196,-888.76,0.00023734,2]
[376645714,1754069462208,-460.0,0.00023734,2]
[376645715,1754069462219,-480.57127335,0.00023734,2]
[376645716,1754069462229,-582.9,0.00023734,2]
[376645717,1754069462239,-2347.88,0.00023734,2]
[376645718,1754069462250,-460.0,0.00023734,2]
[376645719,1754069462261,-460.0,0.00023734,2]
[376645720,1754069462272,-611.3,0.00023734,2]
[376645721,1754069462283,-1083.92,0.00023734,2]
[376645722,1754069462295,-460.0,0.00023734,2]
[376645723,1754069462306,-1187.48,0.00023734,2]
[376645724,1754069462320,-460.0,0.00023734,2]
[376645725,1754069462331,-528.38,0.00023734,2]
[376645726,1754069462342,-923.87,0.00023734,2]
[376645727,1754069462353,-1074.14,0.00023734,2]
[376645728,1754069462366,-984.64,0.00023734,2]
[376645729,1754069462377,-460.0,0.00023734,2]
[376645730,1754069462389,-460.0,0.00023734,2]
[376645731,1754069462399,-305.10559489,0.00023762,9]
[376645732,1754069462410,-154.97795384,0.00023784,2]
[376645733,1754069462421,-2911.7,0.000238,7]
[376645734,1754069462431,-6747.65,0.000238,7]
[376645735,1754069462441,-27742.23,0.000238,2]
[376645736,1754069462451,-883.33,0.0002383,2]
[376645737,1754069462461,-460.0,0.0002383,2]
[376645738,1754069462472,-460.0,0.0002383,2]
[376645739,1754069462503,-1123.48,0.0002383,2]
[376645740,1754069462513,-460.0,0.0002383,2]
[376645741,1754069462523,-689.92,0.0002383,2]
[376645742,1754069462534,-460.0,0.0002383,2]
[376645743,1754069462546,-576.55,0.0002383,2]
[376645744,1754069462556,-460.0,0.0002383,2]
[376645745,1754069462566,-460.0,0.0002383,2]
[376645746,1754069462576,-1696.22,0.0002383,2]
[376645747,1754069462586,-1250.77,0.0002383,2]
[376645748,1754069462596,-1005.51,0.0002383,2]
[376645749,1754069462607,-460.0,0.0002383,2]
[376645750,1754069462617,-500.0,0.0002383,2]
[376645751,1754069462628,-590.71,0.0002383,2]
[376645752,1754069462640,-1647.05,0.0002383,2]
[376645753,1754069462652,-794.83,0.0002383,2]
[376645754,1754069462662,-460.0,0.0002383,2]
[376645755,1754069462672,-851.59,0.0002383,2]
[376645756,1754069462683,-460.0,0.0002383,2]
[376645757,1754069462692,-460.0,0.0002383,2]
[376645758,1754069462702,-848.84,0.00023832,2]
[376645759,1754069462712,-460.0,0.00023832,2]
[376645760,1754069462722,-2449.66,0.00023832,2]
[376645761,1754069462733,-480.66,0.00023832,2]
[376645762,1754069462743,-1857.88,0.00023832,2]
[376645763,1754069462753,-460.0,0.00023832,2]
[376645764,1754069462762,-367.32931405,0.00023833,2]
[376645765,1754069462773,-460.0,0.00023833,2]
[376645766,1754069462783,-899.72,0.00023833,2]
[376645767,1754069462792,-460.0,0.00023833,2]
[376645768,1754069462802,-824.68,0.00023833,2]
[376645769,1754069462812,-576.62,0.00023833,2]
[376645770,1754069462822,-584.83,0.00023833,2]
[376645771,1754069462832,-2037.08,0.00023833,2]
[376645772,1754069462841,-623.77,0.00023833,2]
[376645773,1754069462851,-460.0,0.00023834,2]
[376645774,1754069462860,-460.0,0.00023834,2]
[376645775,1754069462870,-460.0,0.00023834,2]
[376645776,1754069462879,-572.15,0.00023834,2]
[376645777,1754069462889,-558.46,0.00023834,2]
[376645778,1754069462899,-470.41,0.00023834,2]
[376645779,1754069462909,-460.0,0.00023834,2]
[376645780,1754069462919,-522.15,0.00023834,2]
[376645781,1754069462929,-3584.18,0.00023834,2]
[376645782,1754069462939,-460.0,0.00023834,2]
[376645783,1754069462948,-460.0,0.00023834,2]
[376645784,1754069462958,-460.0,0.00023834,2]
[376645785,1754069462968,-3955.69,0.00023834,2]
[376645786,1754069462985,-554.16,0.00023834,2]
[376645787,1754069462998,-460.0,0.00023834,2]
[376645788,1754069463008,-460.0,0.00023834,2]
[376645789,1754069463018,-747.38,0.00023834,2]
[376645790,1754069463029,-1190.84,0.00023834,2]
[376645791,1754069463040,-1234.91,0.00023834,2]
[376645792,1754069463050,-574.19,0.00023834,2]
[376645793,1754069463061,-2698.82,0.00023834,2]
[376645794,1754069463071,-8054.32,0.00023834,2]
[376645795,1754069463083,-529.07,0.00023834,2]
[376645796,1754069463093,-1354.33,0.00023834,2]
[376645797,1754069463103,-4626.0,0.00023834,2]
[376645798,1754069463114,-460.0,0.00023834,2]
[376645799,1754069463125,-610.0,0.00023835,10]
[376645800,1754069463136,-2097.27,0.00023835,10]
[376645801,1754069463145,-460.0,0.00023835,10]
[376645802,1754069463155,-740.85,0.00023835,10]
[376645803,1754069463165,-478.48838928,0.00023835,10]
[376645804,1754069463175,-378.44005049,0.00023835,10]
[376645805,1754069463185,-460.0,0.00023835,10]
[376645806,1754069463195,-460.0,0.00023835,10]
[376645807,1754069463205,-153.0,0.00023863,2]
[376645808,1754069463215,-153.0,0.00023863,2]
[376645809,1754069463224,-153.0,0.00023863,2]
[376645810,1754069463340,-153.0,0.00023863,2]
[376645811,1754069463363,-153.0,0.00023863,2]
[376645812,1754069463373,-306.0,0.00023863,2]
[376645813,1754069463389,-1000.0,0.00023866,5]
[376645814,1754069463400,-250.0,0.00023941,2]
[376645815,1754069463409,-204.458,0.00023942,2]
[376645816,1754069463419,-248.658,0.00023942,2]
[376645817,1754069463430,-250.0,0.00023942,2]
[376645818,1754069463439,-217.519,0.00023942,2]
[376645819,1754069463449,-305.10559489,0.00023969,10]
[376645820,1754069463459,-216.22890603,0.00024,10]
[376645821,1754069463469,-160.0,0.00024,7]
[376645822,1754069463483,-841.53699354,0.00024,7]
[376645823,1754069463492,-526.925583,0.00024,10]
[376645824,1754069463503,-460.0,0.00024001,2]
[376645825,1754069463512,-561.33,0.00024006,2]
[376645826,1754069463522,-7885.76,0.00024007,2]
[376645827,1754069463531,-1256.44,0.00024007,2]
[376645828,1754069463540,-483.69,0.00024007,2]
[376645829,1754069463549,-460.0,0.00024007,2]
[376645830,1754069463559,-5790.7,0.00024007,2]
[376645831,1754069463568,-460.0,0.00024007,2]
[376645832,1754069463578,-460.0,0.00024007,2]
[376645833,1754069463587,-986.92,0.00024007,2]
[376645834,1754069463596,-976.82,0.00024007,2]
[376645835,1754069463605,-474.25,0.00024007,2]
[376645836,1754069463614,-1013.68,0.00024007,2]
[376645837,1754069463624,-3993.69,0.00024007,2]
[376645838,1754069463635,-1218.29,0.00024007,2]
[376645839,1754069463646,-562.37,0.00024007,2]
[376645840,1754069463655,-3161.08,0.00024007,2]
[376645841,1754069463668,-1133.95,0.00024007,2]
[376645842,1754069463690,-2061.59,0.00024007,2]
[376645843,1754069463706,-460.0,0.00024008,2]
[376645844,1754069463715,-460.0,0.00024008,2]
[376645845,1754069463724,-460.0,0.00024008,2]
[376645846,1754069463737,-484.4,0.00024008,2]
[376645847,1754069463746,-460.0,0.00024008,2]
[376645848,1754069463755,-604.16036438,0.00024008,2]
[376645849,1754069463765,-460.0,0.00024008,2]
[376645850,1754069463774,-882.76,0.00024008,2]
[376645851,1754069463783,-1038.26,0.00024008,2]
[376645852,1754069463792,-460.0,0.00024008,2]
[376645853,1754069463802,-748.01,0.00024008,2]
[376645854,1754069463811,-460.0,0.00024008,2]
[376645855,1754069463821,-565.8,0.00024008,2]
[376645856,1754069463830,-1629.59,0.00024008,2]
[376645857,1754069463840,-829.9,0.00024008,2]
[376645858,1754069463850,-1243.19,0.00024008,2]
[376645859,1754069463859,-496.98410143,0.00024008,2]
[376645860,1754069463869,-575.44,0.00024008,2]
[376645861,1754069463879,-524.08,0.00024008,2]
[376645862,1754069463889,-620.6,0.00024008,2]
[376645863,1754069463899,-460.0,0.00024008,2]
[376645864,1754069463909,-460.0,0.00024008,2]
[376645865,1754069463919,-1277.87,0.00024008,2]
[376645866,1754069463929,-600.2,0.00024008,2]
[376645867,1754069463940,-460.0,0.00024008,2]
[376645868,1754069463950,-662.37,0.00024008,2]
[376645869,1754069463959,-1085.61,0.00024008,2]
[376645870,1754069463969,-3361.66,0.00024008,2]
[376645871,1754069463983,-460.0,0.00024008,2]
[376645872,1754069463995,-1453.73,0.00024008,2]
[376645873,1754069464006,-627.63,0.00024008,2]
[376645874,1754069464015,-1282.4,0.00024008,2]
[376645875,1754069464025,-479.84,0.00024008,2]
[376645876,1754069464035,-2414.29,0.00024008,2]
[376645877,1754069464045,-684.14,0.00024008,2]
[376645878,1754069464055,-460.0,0.00024008,2]
[376645879,1754069464065,-460.0,0.00024008,2]
[376645880,1754069464074,-460.0,0.00024008,2]
[376645881,1754069464084,-1524.19,0.00024008,2]
[376645882,1754069464094,-236.18774172,0.00024008,2]
[376645883,1754069464104,-888.76,0.00024008,2]
[376645884,1754069464114,-460.0,0.00024008,2]
[376645885,1754069464124,-582.9,0.00024008,2]
[376645886,1754069464134,-460.0,0.00024008,2]
[376645887,1754069464144,-2347.88,0.00024008,2]
[376645888,1754069464154,-339.75625217,0.00024008,2]
[376645889,1754069464163,-611.3,0.00024008,2]
[376645890,1754069464173,-1083.92,0.00024008,2]
[376645891,1754069464183,-460.0,0.00024008,2]
[376645892,1754069464193,-1187.48,0.00024008,2]
[376645893,1754069464203,-460.0,0.00024008,2]
[376645894,1754069464213,-528.38,0.00024008,2]
[376645895,1754069464222,-923.87,0.00024008,2]
[376645896,1754069464238,-1074.14,0.00024008,2]
[376645897,1754069464247,-984.64,0.00024008,2]
[376645898,1754069464257,-460.0,0.00024008,2]
[376645899,1754069464266,-460.0,0.00024008,2]
[376645900,1754069464275,-883.33,0.00024104,2]
[376645901,1754069464285,-489.99,0.00024104,2]
[376645902,1754069464295,-460.0,0.00024104,2]
[376645903,1754069464304,-1123.48,0.00024104,2]
[376645904,1754069464313,-460.0,0.00024104,2]
[376645905,1754069464322,-689.92,0.00024104,2]
[376645906,1754069464332,-460.0,0.00024104,2]
[376645907,1754069464342,-576.55,0.00024104,2]
[376645908,1754069464351,-460.0,0.00024104,2]
[376645909,1754069464360,-460.0,0.00024104,2]
[376645910,1754069464369,-1696.22,0.00024104,2]
[376645911,1754069464379,-1250.77,0.00024104,2]
[376645912,1754069464388,-1005.51,0.00024104,2]
[376645913,1754069464398,-460.0,0.00024104,2]
[376645914,1754069464407,-500.0,0.00024104,2]
[376645915,1754069464416,-590.71,0.00024104,2]
[376645916,1754069464425,-1647.05,0.00024104,2]
[376645917,1754069464434,-794.83,0.00024104,2]
[376645918,1754069464444,-460.0,0.00024104,2]
[376645919,1754069464454,-851.59,0.00024104,2]
[376645920,1754069464464,-460.0,0.00024104,2]
[376645921,1754069464473,-460.0,0.00024104,2]
[376645922,1754069464486,-480.57127335,0.00024106,2]
[376645923,1754069464496,-848.84,0.00024106,2]
[376645924,1754069464506,-460.0,0.00024106,2]
[376645925,1754069464515,-2449.66,0.00024106,2]
[376645926,1754069464525,-480.66,0.00024106,2]
[376645927,1754069464534,-1857.88,0.00024106,2]
[376645928,1754069464543,-460.0,0.00024106,2]
[376645929,1754069464552,-460.0,0.00024107,2]
[376645930,1754069464562,-899.72,0.00024107,2]
[376645931,1754069464571,-460.0,0.00024107,2]
[376645932,1754069464580,-824.68,0.00024107,2]
[376645933,1754069464590,-576.62,0.00024107,2]
[376645934,1754069464600,-584.83,0.00024107,2]
[376645935,1754069464609,-2037.08,0.00024107,2]
[376645936,1754069464619,-623.77,0.00024107,2]
[376645937,1754069464629,-460.0,0.00024108,2]
[376645938,1754069464639,-460.0,0.00024108,2]
[376645939,1754069464649,-460.0,0.00024108,2]
[376645940,1754069464660,-572.15,0.00024108,2]
[376645941,1754069464669,-558.46,0.00024108,2]
[376645942,1754069464679,-470.41,0.00024108,2]
[376645943,1754069464688,-460.0,0.00024108,2]
[376645944,1754069464698,-522.15,0.00024108,2]
[376645945,1754069464708,-3584.18,0.00024108,2]
[376645946,1754069464718,-460.0,0.00024108,2]
[376645947,1754069464732,-460.0,0.00024108,2]
[376645948,1754069464743,-460.0,0.00024108,2]
[376645949,1754069464753,-3955.69,0.00024108,2]
[376645950,1754069464763,-554.16,0.00024108,2]
[376645951,1754069464773,-460.0,0.00024108,2]
[376645952,1754069464784,-460.0,0.00024108,2]
[376645953,1754069464793,-747.38,0.00024108,2]
[376645954,1754069464805,-1190.84,0.00024108,2]
[376645955,1754069464815,-1234.91,0.00024108,2]
[376645956,1754069464824,-574.19,0.00024108,2]
[376645957,1754069464833,-2698.82,0.00024108,2]
[376645958,1754069464843,-8054.32,0.00024108,2]
[376645959,1754069464852,-529.07,0.00024108,2]
[376645960,1754069464862,-1354.33,0.00024108,2]
[376645961,1754069464872,-4626.0,0.00024108,2]
[376645962,1754069464881,-460.0,0.00024108,2]
[376645963,1754069464891,-610.0,0.00024109,10]
[376645964,1754069464900,-2097.27,0.00024109,10]
[376645965,1754069464909,-460.0,0.00024109,10]
[376645966,1754069464919,-740.85,0.00024109,10]
[376645967,1754069464929,-460.0,0.00024109,10]
[376645968,1754069464938,-460.0,0.00024109,10]
[376645969,1754069464948,-152.85,0.00024133,2]
[376645970,1754069464957,-151.348972,0.00024166,6]
[376645971,1754069464967,-305.10559489,0.00024176,10]
[376645972,1754069464980,-329.4,0.00024264,5]
[376645973,1754069464989,-561.33,0.0002428,2]
[376645974,1754069464999,-7885.76,0.00024281,2]
[376645975,1754069465008,-1256.44,0.00024281,2]
[376645976,1754069465018,-483.69,0.00024281,2]
[376645977,1754069465027,-460.0,0.00024281,2]
[376645978,1754069465037,-5790.7,0.00024281,2]
[376645979,1754069465046,-460.0,0.00024281,2]
[376645980,1754069465056,-460.0,0.00024281,2]
[376645981,1754069465065,-986.92,0.00024281,2]
[376645982,1754069465075,-976.82,0.00024281,2]
[376645983,1754069465085,-474.25,0.00024281,2]
[376645984,1754069465095,-1013.68,0.00024281,2]
[376645985,1754069465104,-3993.69,0.00024281,2]
[376645986,1754069465113,-1218.29,0.00024281,2]
[376645987,1754069465122,-562.37,0.00024281,2]
[376645988,1754069465131,-3161.08,0.00024281,2]
[376645989,1754069465141,-1133.95,0.00024281,2]
[376645990,1754069465150,-2061.59,0.00024281,2]
[376645991,1754069465159,-442.63,0.00024282,2]
[376645992,1754069465168,-184.66,0.00024282,2]
[376645993,1754069465177,-460.0,0.00024282,2]
[376645994,1754069465186,-484.4,0.00024282,2]
[376645995,1754069465194,-460.0,0.00024282,2]
[376645996,1754069465203,-460.0,0.00024282,2]
[376645997,1754069465212,-882.76,0.00024282,2]
[376645998,1754069465222,-1038.26,0.00024282,2]
[376645999,1754069465233,-460.0,0.00024282,2]
[376646000,1754069465242,-748.01,0.00024282,2]
[376646001,1754069465252,-479.02011518,0.00024282,2]
[376646002,1754069465261,-565.8,0.00024282,2]
[376646003,1754069465271,-1629.59,0.00024282,2]
[376646004,1754069465280,-829.9,0.00024282,2]
[376646005,1754069465289,-1243.19,0.00024282,2]
[376646006,1754069465299,-575.44,0.00024282,2]
[376646007,1754069465309,-524.08,0.00024282,2]
[376646008,1754069465319,-620.6,0.00024282,2]
[376646009,1754069465328,-460.0,0.00024282,2]
[376646010,1754069465337,-460.0,0.00024282,2]
[376646011,1754069465346,-1277.87,0.00024282,2]
[376646012,1754069465355,-600.2,0.00024282,2]
[376646013,1754069465365,-460.0,0.00024282,2]
[376646014,1754069465374,-662.37,0.00024282,2]
[376646015,1754069465383,-1085.61,0.00024282,2]
[376646016,1754069465392,-3361.66,0.00024282,2]
[376646017,1754069465402,-460.0,0.00024282,2]
[376646018,1754069465412,-1453.73,0.00024282,2]
[376646019,1754069465421,-627.63,0.00024282,2]
[376646020,1754069465430,-1282.4,0.00024282,2]
[376646021,1754069465439,-479.84,0.00024282,2]
[376646022,1754069465449,-5050.75262965,0.00024282,2]
[376646023,1754069465458,-684.14,0.00024282,2]
[376646024,1754069465468,-2414.29,0.00024282,2]
[376646025,1754069465480,-460.0,0.00024282,2]
[376646026,1754069465489,-460.0,0.00024282,2]
[376646027,1754069465498,-470.75757574,0.00024282,2]
[376646028,1754069465508,-1524.19,0.00024282,2]
[376646029,1754069465517,-888.76,0.00024282,2]
[376646030,1754069465526,-460.0,0.00024282,2]
[376646031,1754069465535,-582.9,0.00024282,2]
[376646032,1754069465545,-460.0,0.00024282,2]
[376646033,1754069465554,-2347.88,0.00024282,2]
[376646034,1754069465657,-611.3,0.00024282,2]
[376646035,1754069465677,-1083.92,0.00024282,2]
[376646036,1754069465689,-460.0,0.00024282,2]
[376646037,1754069465699,-1187.48,0.00024282,2]
[376646038,1754069465708,-460.0,0.00024282,2]
[376646039,1754069465718,-528.38,0.00024282,2]
[376646040,1754069465733,-923.87,0.00024282,2]
[376646041,1754069465744,-1074.14,0.00024282,2]
[376646042,1754069465753,-984.64,0.00024282,2]
[376646043,1754069465764,-460.0,0.00024282,2]
[376646044,1754069465774,-460.0,0.00024282,2]
[376646045,1754069465783,-883.33,0.00024378,2]
[376646046,1754069465793,-214.09,0.00024378,2]
[376646047,1754069465804,-1123.48,0.00024378,2]
[376646048,1754069465813,-460.0,0.00024378,2]
[376646049,1754069465824,-689.92,0.00024378,2]
[376646050,1754069465833,-504.1967612,0.00024378,2]
[376646051,1754069465843,-576.55,0.00024378,2]
[376646052,1754069465857,-460.0,0.00024378,2]
[376646053,1754069465867,-460.0,0.00024378,2]
[376646054,1754069465876,-1696.22,0.00024378,2]
[376646055,1754069465886,-1250.77,0.00024378,2]
[376646056,1754069465895,-1005.51,0.00024378,2]
[376646057,1754069465904,-460.0,0.00024378,2]
[376646058,1754069465914,-500.0,0.00024378,2]
[376646059,1754069465923,-590.71,0.00024378,2]
[376646060,1754069465932,-1647.05,0.00024378,2]
[376646061,1754069465941,-794.83,0.00024378,2]
[376646062,1754069465951,-460.0,0.00024378,2]
[376646063,1754069465960,-851.59,0.00024378,2]
[376646064,1754069465970,-460.0,0.00024378,2]
[376646065,1754069465981,-460.0,0.00024378,2]
[376646066,1754069465992,-848.84,0.0002438,2]
[376646067,1754069466002,-460.0,0.0002438,2]
[376646068,1754069466011,-2449.66,0.0002438,2]
[376646069,1754069466021,-480.66,0.0002438,2]
[376646070,1754069466031,-1857.88,0.0002438,2]
[376646071,1754069466040,-460.0,0.0002438,2]
[376646072,1754069466050,-460.0,0.00024381,2]
[376646073,1754069466060,-899.72,0.00024381,2]
[376646074,1754069466069,-460.0,0.00024381,2]
[376646075,1754069466079,-824.68,0.00024381,2]
[376646076,1754069466088,-576.62,0.00024381,2]
[376646077,1754069466098,-584.83,0.00024381,2]
[376646078,1754069466108,-2037.08,0.00024381,2]
[376646079,1754069466117,-623.77,0.00024381,2]
[376646080,1754069466126,-460.0,0.00024382,2]
[376646081,1754069466136,-460.0,0.00024382,2]
[376646082,1754069466145,-582.60003279,0.00024382,2]
[376646083,1754069466155,-572.15,0.00024382,2]
[376646084,1754069466164,-558.46,0.00024382,2]
[376646085,1754069466174,-470.41,0.00024382,2]
[376646086,1754069466183,-460.0,0.00024382,2]
[376646087,1754069466193,-522.15,0.00024382,2]
[376646088,1754069466202,-3584.18,0.00024382,2]
[376646089,1754069466212,-460.0,0.00024382,2]
[376646090,1754069466222,-460.0,0.00024382,2]
[376646091,1754069466235,-201.33097933,0.00024382,2]
[376646092,1754069466245,-3955.69,0.00024382,2]
[376646093,1754069466255,-554.16,0.00024382,2]
[376646094,1754069466265,-460.0,0.00024382,2]
[376646095,1754069466275,-460.0,0.00024382,2]
[376646096,1754069466286,-747.38,0.00024382,2]
[376646097,1754069466296,-1190.84,0.00024382,2]
[376646098,1754069466306,-1234.91,0.00024382,2]
[376646099,1754069466316,-574.19,0.00024382,2]
[376646100,1754069466325,-2698.82,0.00024382,2]
[376646101,1754069466334,-8054.32,0.00024382,2]
[376646102,1754069466344,-529.07,0.00024382,2]
[376646103,1754069466353,-4626.0,0.00024382,2]
[376646104,1754069466362,-1354.33,0.00024382,2]
[376646105,1754069466372,-460.0,0.00024382,2]
[376646106,1754069466383,-305.10559489,0.00024383,11]
[376646107,1754069466393,-610.0,0.00024383,10]
[376646108,1754069466403,-2097.27,0.00024383,10]
[376646109,1754069466412,-460.0,0.00024383,10]
[376646110,1754069466421,-740.85,0.00024383,10]
[376646111,1754069466431,-460.0,0.00024383,10]
[376646112,1754069466441,-460.0,0.00024383,10]
[376646113,1754069466451,-539.22,0.00024383,10]
[376646114,1754069466462,-539.22,0.00024383,10]
[376646115,1754069466473,-539.22,0.00024383,10]
[376646116,1754069466486,-539.22,0.00024383,10]
[376646117,1754069466496,-539.22,0.00024383,10]
[376646118,1754069466506,-539.22,0.00024383,10]
[376646119,1754069466515,-539.22,0.00024383,10]
[376646120,1754069466524,-539.22,0.00024383,10]
[376646121,1754069466534,-539.22,0.00024383,10]
[376646122,1754069466543,-539.22,0.00024383,10]
[376646123,1754069466552,-539.22,0.00024383,10]
[376646124,1754069466562,-539.22,0.00024383,10]
[376646125,1754069466571,-539.22,0.00024383,10]
[376646126,1754069466581,-539.22,0.00024383,10]
[376646127,1754069466590,-539.22,0.00024383,10]
[376646128,1754069466599,-539.22,0.00024383,10]
[376646129,1754069466608,-539.22,0.00024383,10]
[376646130,1754069466618,-539.22,0.00024383,10]
[376646131,1754069466627,-539.22,0.00024383,10]
[376646132,1754069466638,-539.22,0.00024383,10]
[376646133,1754069466647,-539.22,0.00024383,10]
[376646134,1754069466660,-539.22,0.00024383,10]
[376646135,1754069466669,-539.22,0.00024383,10]
[376646136,1754069466679,-539.27474852,0.00024383,10]
[376646137,1754069466688,-200.0,0.0002442,15]
[376646138,1754069466698,-200.0,0.0002442,15]
[376646139,1754069466707,-200.0,0.0002442,15]
[376646140,1754069466717,-200.0,0.0002442,15]
[376646141,1754069466727,-200.0,0.0002442,15]
[376646142,1754069466741,-200.0,0.0002442,15]
[376646143,1754069466751,-200.0,0.0002442,15]
[376646144,1754069466760,-160.0,0.00024424,2]
[376646145,1754069466769,-306.87,0.00024438,7]
[376646146,1754069466780,-480.57127335,0.00024477,2]
[376646147,1754069466790,-923267.60977124,0.000245,4]
[376646148,1754069466800,-250.0,0.00024501,2]
[376646149,1754069466810,-329.4,0.00024518,6]
[376646150,1754069466820,-306.87,0.00024538,7]
[376646151,1754069466829,-560.0,0.00024549,2]
[376646152,1754069466839,-561.33,0.00024554,2]
[376646153,1754069466848,-7885.76,0.00024555,2]
[376646154,1754069466858,-1256.44,0.00024555,2]
[376646155,1754069466867,-483.69,0.00024555,2]
[376646156,1754069466877,-460.0,0.00024555,2]
[376646157,1754069466887,-5790.7,0.00024555,2]
[376646158,1754069466897,-460.0,0.00024555,2]
[376646159,1754069466907,-460.0,0.00024555,2]
[376646160,1754069466916,-986.92,0.00024555,2]
[376646161,1754069466926,-976.82,0.00024555,2]
[376646162,1754069466936,-474.25,0.00024555,2]
[376646163,1754069466945,-1013.68,0.00024555,2]
[376646164,1754069466955,-3993.69,0.00024555,2]
[376646165,1754069466965,-1218.29,0.00024555,2]
[376646166,1754069466975,-562.37,0.00024555,2]
[376646167,1754069466989,-3161.08,0.00024555,2]
[376646168,1754069466998,-1133.95,0.00024555,2]
[376646169,1754069467008,-2061.59,0.00024555,2]
[376646170,1754069467019,-460.0,0.00024556,2]
[376646171,1754069467029,-484.4,0.00024556,2]
[376646172,1754069467040,-460.0,0.00024556,2]
[376646173,1754069467049,-460.0,0.00024556,2]
[376646174,1754069467060,-882.76,0.00024556,2]
[376646175,1754069467069,-1038.26,0.00024556,2]
[376646176,1754069467078,-460.0,0.00024556,2]
[376646177,1754069467087,-748.01,0.00024556,2]
[376646178,1754069467097,-565.8,0.00024556,2]